fUST/lending_fUST_20260224
["ID","MTS","AMOUNT","RATE_DAILY","PERIOD"]
[406532805,1771920640374,-500.0,0.00013273,2]
[406532806,1771920640384,-500.0,0.00013273,2]
[406532807,1771920640394,-720.0,0.00013462,2]
[406532808,1771920640405,-300.0,0.00013673,2]
[406532809,1771920640414,-899.84009377,0.00013685,2]
[406532810,1771920640424,-504.1851749,0.00013699,2]
[406532811,1771920640433,-471.72988038,0.00013699,2]
[406532812,1771920640443,-354.33241908,0.00013699,2]
[406532813,1771920640453,-647.47897576,0.00013699,2]
[406532814,1771920640463,-156.76067845,0.00013699,2]
[406532815,1771920640473,-166.22587101,0.00013699,2]
[406532816,1771920640484,-487.18735371,0.00013699,2]
[406532817,1771920640497,-500.41406331,0.00013699,2]
[406532818,1771920640507,-238.90697397,0.00013699,2]
[406532819,1771920640517,-500.0,0.00013699,2]
[406532820,1771920640529,-287.3116462,0.00013699,2]
[406532821,1771920640538,-445.23989536,0.00013699,2]
[406532822,1771920640548,-500.0,0.00013699,2]
[406532823,1771920640560,-500.0,0.00013699,2]
[406532824,1771920640570,-500.0,0.00013699,2]
[406532825,1771920640580,-150.0,0.000137,2]
[406532826,1771920640590,-10000.0,0.00013754,2]
[406532827,1771920640604,-510.79048208,0.0001382,2]
[406532828,1771920640614,-1000.0,0.00013821,2]
[406532829,1771920640624,-631.31120589,0.00013821,2]
[406532830,1771920640634,-1000.0,0.00013821,2]
[406532831,1771920640644,-1000.0,0.00013821,2]
[406532832,1771920640653,-250.52,0.000142,2]
[406532833,1771920640663,-600.0,0.00014221,2]
[406532834,1771920640673,-568.70941397,0.00014247,2]
[406532835,1771920640683,-1002.49662358,0.00014247,2]
[406532836,1771920640693,-1000.0,0.00014247,2]
[406532837,1771920640703,-1500.0,0.00014368,2]
[406532839,1771920640713,-1500.0,0.00014368,2]
[406532840,1771920640723,-1500.0,0.00014368,2]
[406532841,1771920640733,-900.0,0.00014768,2]
[406532842,1771920640743,-1500.0,0.00014795,2]
[406532843,1771920640753,-864.0,0.00014808,2]
[406532844,1771920640763,-500.0,0.00014916,2]
[406532845,1771920640773,-500.0,0.00014916,2]
[406532846,1771920640783,-1304.22421811,0.00014916,2]
[406532847,1771920640793,-1200.0,0.00015316,2]
[406532848,1771920640802,-2000.0,0.00015342,2]
[406532849,1771920640812,-588.70767426,0.0001582,2]
[406532850,1771920640822,-855.10392395,0.00015864,2]
[406532851,1771920640831,-2500.0,0.0001589,2]
[406532852,1771920640841,-3814.5707312,0.00015945,2]
[406532853,1771920640851,-514.5513,0.00016117,120]
[406532854,1771920640861,-1000.0,0.00016289,2]
[406532855,1771920640871,-250.26138736,0.00016438,2]
[406532856,1771920640883,-1518.09324732,0.00016438,2]
[406532857,1771920640892,-966.1703842,0.00016849,2]
[406532858,1771920640902,-154.622662,0.00017364,2]
[406532859,1771920640911,-161.07427529,0.00017423,2]
[406532860,1771920640921,-150.26283669,0.00017808,2]
[406532861,1771920640931,-666.62486644,0.0001782,2]
[406532862,1771920640940,-1000.0,0.00017918,2]
[406532864,1771920640950,-244.0,0.00017918,2]
[406532866,1771920640959,-250.0,0.00018512,2]
[406532868,1771920640969,-248.0,0.00019709,2]
[406532870,1771920640978,-3814.5707312,0.00019752,2]
[406532872,1771920640988,-744.54205862,0.0001982,2]
[406532874,1771920640997,-100000.0,0.0001999,2]
[406532876,1771920641007,-727.0,0.00020165,2]
[406532878,1771920641017,-744.3517164,0.00021388,2]
[406532880,1771920641026,-207.401,0.00021488,2]
[406532882,1771920641036,-294.661,0.00021488,2]
[406532884,1771920641045,-150.572,0.00021488,2]
[406532886,1771920641054,-250.0,0.00021488,2]
[406532888,1771920641064,-635.0,0.00021488,2]
[406532890,1771920641074,-2179.0,0.00021488,2]
[406532892,1771920641083,-429.0,0.00021488,2]
[406532894,1771920641094,-822.4592508,0.0002182,2]
[406532895,1771920641103,-503.72793804,0.00022143,2]
[406532898,1771920641114,-294.11601101,0.00022188,2]
[406532900,1771920641124,-1706.2677102,0.0002232,2]
[406532901,1771920641133,-727.0,0.00023165,2]
[406532904,1771920641143,-1540.0464046,0.00023319,2]
[406532905,1771920641153,-1390.3360859,0.00023482,2]
[406532907,1771920641162,-3814.5707312,0.00023559,2]
[406532909,1771920641172,-900.37644299,0.0002382,2]
[406532911,1771920641182,-906.71028848,0.00023986,2]
[406532914,1771920641192,-529.40881981,0.00024031,2]
[406532915,1771920641201,-150.0,0.00024488,2]
[406532918,1771920641211,-150.0,0.00024488,2]
[406532919,1771920641221,-150.0,0.00024488,2]
[406532921,1771920641231,-150.0,0.00024488,2]
[406532924,1771920641244,-2179.0,0.00024488,2]
[406532926,1771920641254,-429.0,0.00024488,2]
[406532928,1771920641263,-978.29363517,0.0002582,2]
[406532930,1771920641273,-727.0,0.00026165,2]
[406532932,1771920641282,-3814.5707312,0.00027365,2]
[406532934,1771920641293,-150.0,0.00027488,2]
[406532936,1771920641302,-975.703,0.00027488,2]
[406532938,1771920641311,-429.0,0.00027488,2]
[406532940,1771920641320,-487.0,0.00027488,2]
[406532942,1771920641330,-487.0,0.00027488,2]
[406532944,1771920641339,-487.0,0.00027488,2]
[406532946,1771920641348,-487.0,0.00027488,2]
[406532947,1771920641358,-487.0,0.00027488,2]
[406532950,1771920641367,-881.08,0.00027488,2]
[406532952,1771920641379,-1056.21082735,0.0002782,2]
[406532953,1771920641388,-252.06838364,0.00028561,2]
[406532955,1771920641399,-270.0,0.000287,2]
[406532957,1771920641410,-727.0,0.00029165,2]
[406532960,1771920641419,-10103.08956335,0.00029344,2]
[406532962,1771920641428,-899573.87157287,0.00029444,2]
[406532964,1771920641441,-2745.99460462,0.00029444,2]
[406532966,1771920641452,-11705.89482807,0.00029444,2]
[406533225,1771920644033,-332.04342368,0.00012459,2]
[406533686,1771920648480,-4667.95657632,0.00012459,2]
[406533688,1771920648495,-2279.57,0.00029434,10]
[406533690,1771920648504,-5062.7558489,0.00029444,2]
[406533911,1771921236359,405.2118473,0.00042431,120]
[406533916,1771921479559,342.15779426,0.00042431,120]
[406533919,1771921543155,-589.0,0.00011996,2]
[406533920,1771921543176,-300.0,0.00013272,2]
[406533921,1771921543197,-43.08640377,0.00013272,2]
[406533922,1771921544289,500.0,0.00042431,120]
[406533923,1771921544520,247.08000002,0.00042431,120]
[406533933,1771921646079,-200.6398108,0.00013172,2]
[406533934,1771921646099,-1200.0,0.00013272,2]
[406533935,1771921646119,-93.20949046,0.00013272,2]
[406534017,1771921831597,-3658.8587075,0.00011659,2]
[406534458,1771921843191,-1341.1412925,0.00011659,2]
[406534462,1771921843209,-1341.1412925,0.00011777,2]
[406534464,1771921843220,-594.25016075,0.00011777,2]
[406534743,1771921845675,-1006.42377235,0.00011777,2]
[406534745,1771921845685,-164.21938277,0.00011896,2]
[406534747,1771921845694,-495.78346784,0.00011896,2]
[406535133,1771922240946,150.875377,0.00042433,120]
[406535134,1771922241242,150.875377,0.00042433,120]
[406535149,1771922485996,534.5767,0.00042434,120]
[406535150,1771922487172,534.5767,0.00042434,120]
[406535151,1771922487751,534.5767,0.00042434,120]
[406535155,1771922560071,453.3,0.00042434,10]
[406535173,1771922703122,1044.96,0.0001525,120]
[406535174,1771922707372,300.0,0.0001402,120]
[406535175,1771922709117,300.0,0.0001402,120]
[406535176,1771922710849,300.0,0.0001402,120]
[406535177,1771922712588,300.0,0.0001402,120]
[406535178,1771922714354,300.0,0.0001402,120]
[406535179,1771922716031,300.0,0.0001402,120]
[406535180,1771922717760,300.0,0.0001402,120]
[406535181,1771922719480,300.0,0.0001402,120]
[406535182,1771922721187,300.0,0.0001402,120]
[406535183,1771922722924,300.0,0.0001402,120]
[406535184,1771922724656,300.0,0.0001402,120]
[406535185,1771922726462,300.0,0.0001402,120]
[406535186,1771922728054,300.0,0.0001402,120]
[406535187,1771922729775,300.0,0.0001402,120]
[406535188,1771922731496,300.0,0.0001402,120]
[406535189,1771922753141,-588.0,0.00011896,2]
[406535190,1771922753162,-152.39959074,0.00013272,2]
[406535191,1771922819829,300.0,0.00014755,120]
[406535192,1771922821550,300.0,0.00014755,120]
[406535193,1771922823269,300.0,0.00014755,120]
[406535194,1771922833073,-701.28433656,0.00013139,2]
[406535196,1771922844856,161.8652,0.00013282,120]
[406535197,1771922845017,161.8652,0.00013486,120]
[406535198,1771922845175,161.8652,0.00013553,120]
[406535199,1771922845330,161.8652,0.00013689,120]
[406535298,1771923031760,-3640.66176592,0.00012749,2]
[406535305,1771923031814,-1359.33823408,0.00012749,2]
[406535307,1771923031823,-613.2215627,0.00012878,2]
[406535309,1771923031833,-602.0,0.00012878,2]
[406535311,1771923031842,-3263.16724096,0.00013008,2]
[406535313,1771923031852,-701.0,0.00013138,2]
[406535315,1771923031861,-300.0,0.00013272,2]
[406535317,1771923031870,-500.0,0.00013273,2]
[406535319,1771923031879,-500.0,0.00013273,2]
[406535321,1771923031890,-500.0,0.00013273,2]
[406535323,1771923031899,-500.0,0.00013273,2]
[406535325,1771923031908,-500.0,0.00013273,2]
[406535326,1771923031917,-386.81625403,0.00013273,2]
[406535328,1771923031927,-3789.85,0.0001369,2]
[406535330,1771923031936,-300.0,0.00013698,2]
[406535332,1771923031945,-500.0,0.00013699,2]
[406535334,1771923031954,-221.7324158,0.00013699,2]
[406535336,1771923031963,-317.24757628,0.00013699,2]
[406535338,1771923031972,-500.0,0.00013699,2]
[406535340,1771923031981,-160.81096116,0.00013699,2]
[406535342,1771923031990,-500.0,0.00013699,2]
[406535344,1771923032001,-202.89528617,0.00013699,2]
[406535346,1771923032010,-500.0,0.00013699,2]
[406535349,1771923032019,-500.0,0.00013699,2]
[406535351,1771923032028,-500.0,0.00013699,2]
[406535352,1771923032037,-500.0,0.00013699,2]
[406535354,1771923032046,-500.0,0.00013699,2]
[406535356,1771923032055,-501.83965359,0.00013699,2]
[406535359,1771923032064,-504.92646284,0.00013699,2]
[406535360,1771923032074,-159.22844513,0.00013699,2]
[406535363,1771923032083,-515.10493437,0.00013699,2]
[406535364,1771923032092,-500.0,0.00013699,2]
[406535367,1771923032102,-500.0,0.00013699,2]
[406535368,1771923032111,-500.0,0.00013699,2]
[406535371,1771923032121,-166.16,0.000137,2]
[406535373,1771923032131,-179.347116,0.00013777,2]
[406535375,1771923032139,-500.0,0.00013821,2]
[406535377,1771923032148,-500.0,0.00013821,2]
[406535379,1771923032157,-500.0,0.00013821,2]
[406535381,1771923032166,-567.38717322,0.00013821,2]
[406535383,1771923032175,-606.24694134,0.00014034,2]
[406535385,1771923032184,-500.0,0.00014034,2]
[406535386,1771923032194,-500.0,0.00014034,2]
[406535389,1771923032203,-418.76090646,0.00014034,2]
[406535391,1771923032213,-500.0,0.00014034,2]
[406535393,1771923032226,-215.86293252,0.00014034,2]
[406535395,1771923032235,-318.15353318,0.00014034,2]
[406535397,1771923032244,-500.0,0.00014034,2]
[406535399,1771923032253,-500.0,0.00014034,2]
[406535400,1771923032263,-500.0,0.00014034,2]
[406535403,1771923032272,-500.0,0.00014034,2]
[406535405,1771923032281,-500.0,0.00014034,2]
[406535407,1771923032291,-500.0,0.00014034,2]
[406535418,1771923032386,-359.80410727,0.00014034,2]
[406535420,1771923032396,-4151.1547507,0.00014035,2]
[406535422,1771923032405,-1430.4640242,0.00014142,2]
[406535424,1771923032414,-500.0,0.00014247,2]
[406535426,1771923032423,-500.0,0.00014247,2]
[406535428,1771923032432,-613.63308772,0.00014247,2]
[406535430,1771923032442,-257.44681444,0.00014247,2]
[406535432,1771923032451,-284.82317169,0.00014247,2]
[406535434,1771923032460,-500.0,0.00014247,2]
[406535436,1771923032470,-750.29312833,0.00014247,2]
[406535438,1771923032480,-1000.0,0.00014247,2]
[406535440,1771923032489,-420.0,0.00014551,2]
[406535442,1771923032498,-395.38945896,0.00014795,2]
[406535444,1771923032507,-367.79662382,0.00015,2]
[406536299,1771923041202,-469.07870949,0.0001485,2]
[406536301,1771923041214,-731.82176534,0.0001485,2]
[406536518,1771923046033,-3799.09952517,0.0001485,2]
[406536519,1771923046044,-635.6537453,0.00015,2]
[406536520,1771923046054,-228.6893,0.00016117,120]
[406536521,1771923046065,-228.6394,0.00016117,120]
[406536522,1771923046075,-312.137495,0.0001742,2]
[406536523,1771923046086,-279.960024,0.00017654,2]
[406536533,1771923126995,-379.0,0.00027,120]
[406536534,1771923127023,-916.11,0.00032877,10]
[406536535,1771923127049,-166.08,0.000329,7]
[406536536,1771923127075,-156.12,0.000329,7]
[406536537,1771923127101,-14358.56,0.000329,14]
[406536538,1771923127127,-616.77079504,0.0003338,120]
[406536539,1771923127152,-675.20171247,0.0003538,120]
[406536540,1771923127178,-160.0,0.00036018,5]
[406536541,1771923127307,-733.63262989,0.0003738,120]
[406536542,1771923127334,-179.78425889,0.00037722,18]
[406536543,1771923127362,-272.23554834,0.00038278,30]
[406536544,1771923127389,-813.76001386,0.000385,15]
[406536545,1771923127416,-792.06354732,0.0003938,120]
[406536546,1771923127442,-14358.56,0.000399,14]
[406536547,1771923127470,-218.1,0.0004,120]
[406536548,1771923127496,-209.45,0.0004,120]
[406536549,1771923127521,-260.42,0.0004,120]
[406536550,1771923127546,-394.47109679,0.00040474,30]
[406536551,1771923127572,-710.0,0.00040847,11]
[406536552,1771923127597,-533.66,0.00040993,120]
[406536553,1771923127622,-506.23,0.00040993,120]
[406536554,1771923127651,-7636.24,0.00041095,120]
[406536555,1771923127679,-843.0,0.00041096,120]
[406536556,1771923127704,-1533.4,0.000411,14]
[406536557,1771923127730,-234.33,0.000411,30]
[406536558,1771923127755,-1722.15,0.000411,30]
[406536559,1771923127779,-850.49446474,0.0004138,120]
[406536560,1771923127805,-843.0,0.00041644,120]
[406536561,1771923127830,-260.42,0.00042,120]
[406536562,1771923127854,-218.1,0.00042,120]
[406536563,1771923127878,-843.0,0.00042192,120]
[406536564,1771923127903,-475.0,0.00042363,120]
[406536565,1771923127928,-475.0,0.00042363,120]
[406536566,1771923127953,-475.0,0.00042363,120]
[406536567,1771923127979,-475.0,0.00042363,120]
[406536568,1771923128004,-475.0,0.00042363,120]
[406536569,1771923128028,-475.0,0.00042363,120]
[406536570,1771923128052,-475.0,0.00042363,120]
[406536571,1771923128077,-475.0,0.00042363,120]
[406536572,1771923128104,-475.0,0.00042363,120]
[406536573,1771923128129,-475.0,0.00042363,120]
[406536574,1771923128154,-475.0,0.00042363,120]
[406536575,1771923128179,-475.0,0.00042363,120]
[406536576,1771923128204,-475.0,0.00042363,120]
[406536577,1771923128232,-475.0,0.00042363,120]
[406536578,1771923128261,-475.0,0.00042363,120]
[406536579,1771923128287,-475.0,0.00042363,120]
[406536580,1771923128314,-419.52,0.00042363,120]
[406536581,1771923128339,-713.0,0.000424,10]
[406536582,1771923128364,-10000.0,0.0004243,10]
[406536583,1771923128389,-10000.0,0.0004243,10]
[406536584,1771923128414,-10000.0,0.0004243,10]
[406536585,1771923128439,-10000.0,0.0004243,10]
[406536586,1771923128463,-10000.0,0.0004243,10]
[406536587,1771923128487,-3114.0,0.00042434,10]
[406536588,1771923128511,-242.84097808,0.00042434,10]
[406536589,1771923128539,-1538.0,0.00042501,10]
[406536590,1771923128565,-420.20489634,0.0004267,30]
[406536591,1771923128592,-500.0,0.00042726,120]
[406536592,1771923128617,-500.0,0.00042726,120]
[406536593,1771923128643,-500.0,0.00042726,120]
[406536594,1771923128668,-500.0,0.00042726,120]
[406536595,1771923128693,-500.0,0.00042726,120]
[406536596,1771923128718,-500.0,0.00042726,120]
[406536597,1771923128745,-500.0,0.00042726,120]
[406536598,1771923128771,-500.0,0.00042726,120]
[406536599,1771923128795,-500.0,0.00042726,120]
[406536600,1771923128820,-500.0,0.00042726,120]
[406536601,1771923128845,-500.0,0.00042726,120]
[406536602,1771923128872,-500.0,0.00042726,120]
[406536603,1771923128898,-194.8403,0.00042726,120]
[406536604,1771923128926,-715.0,0.00042737,16]
[406536605,1771923128956,-843.0,0.00043,120]
[406536606,1771923128982,-103227.56341193,0.000431,5]
[406536607,1771923129007,-18689.85205155,0.000431,5]
[406536608,1771923129034,-164.67193175,0.00043187,7]
[406536609,1771923129059,-341.50274073,0.00043187,7]
[406536610,1771923129084,-367.58181511,0.00043187,7]
[406536611,1771923129108,-908.92538217,0.0004338,120]
[406536612,1771923129135,-18826.62926319,0.000435,120]
[406536613,1771923129159,-843.0,0.00043548,120]
[406536614,1771923129183,-715.0,0.00043697,16]
[406536615,1771923129209,-535.30922699,0.00043713,30]
[406536616,1771923129232,-14358.56,0.000438,14]
[406536617,1771923129261,-305.74850582,0.00043836,16]
[406536618,1771923129286,-504.81256837,0.00043836,16]
[406536619,1771923129313,-533.66,0.00043984,120]
[406536620,1771923129338,-300.0,0.00044,120]
[406536621,1771923129362,-250.74,0.0004409,120]
[406536622,1771923129465,-260.42,0.000441,120]
[406536623,1771923129492,-218.1,0.000441,120]
[406536624,1771923129516,-744.3517164,0.000443,7]
[406536625,1771923129540,-1722.15,0.000445,30]
[406536626,1771923129564,-604.731448,0.00044609,7]
[406536627,1771923129588,-1533.4,0.000448,14]
[406536628,1771923129614,-234.33,0.000448,30]
[406536629,1771923129640,-426.63834626,0.00044866,30]
[406536630,1771923129666,-506.23,0.00044981,120]
[406536631,1771923129692,-164.67193175,0.00044993,7]
[406536632,1771923129716,-341.50274073,0.00044993,7]
[406536633,1771923129741,-367.58181511,0.00044993,7]
[406536634,1771923129765,-178.5363038,0.00045,120]
[406536635,1771923129790,-195.24201805,0.00045,30]
[406536636,1771923129814,-150.51893768,0.00045,120]
[406536637,1771923129838,-156.0,0.00045,30]
[406536638,1771923129864,-967.35629959,0.0004538,120]
[406536639,1771923129889,-162.0,0.00045398,16]
[406536640,1771923129914,-373.1449,0.000456,120]
[406536641,1771923129938,-744.3517164,0.000456,7]
[406536642,1771923129965,-450.0,0.00045622,30]
[406536643,1771923129992,-450.0,0.00045622,30]
[406536644,1771923130018,-372.0,0.00045622,30]
[406536645,1771923130043,-171.0,0.00046,120]
[406536646,1771923130067,-171.23103681,0.00046,120]
[406536647,1771923130091,-260.42,0.00046305,120]
[406536648,1771923130115,-250.74,0.00046683,120]
[406536649,1771923130141,-533.66,0.00046976,120]
[406536650,1771923130167,-164.67193175,0.00046998,30]
[406536651,1771923130191,-164.67193175,0.00046998,30]
[406536652,1771923130216,-341.50274073,0.00046998,30]
[406536653,1771923130241,-341.50274073,0.00046998,30]
[406536654,1771923130269,-367.58181511,0.00046998,30]
[406536655,1771923130294,-367.58181511,0.00046998,30]
[406536656,1771923130319,-160.0,0.00047,120]
[406536657,1771923130346,-445.938696,0.00047062,30]
[406536658,1771923130374,-1025.78721702,0.0004738,120]
[406536659,1771923130398,-151.0,0.00047397,30]
[406536660,1771923130423,-402.0,0.00047438,16]
[406536661,1771923130446,-1722.15,0.000475,30]
[406536662,1771923130476,-350.0,0.00047682,30]
[406536663,1771923130507,-350.0,0.00047682,30]
[406536664,1771923130539,-317.0,0.00047682,30]
[406536665,1771923130567,-14358.56,0.000477,14]
[406536666,1771923130595,-200.0,0.00048,120]
[406536667,1771923130627,-214.0,0.00048,30]
[406536668,1771923130658,-199.0,0.00048,120]
[406536669,1771923130698,-162.2867338,0.00048,120]
[406536670,1771923130727,-1533.4,0.00048,14]
[406536671,1771923130754,-151.0,0.00048082,34]
[406536672,1771923130782,-234.33,0.000481,30]
[406536673,1771923130812,-1312.31076728,0.00048398,120]
[406536674,1771923130841,-151.0,0.00048767,38]
[406536675,1771923130868,-506.23,0.0004897,120]
[406536676,1771923130897,-200.0,0.00049,120]
[406536677,1771923130925,-300.0,0.00049056,30]
[406536678,1771923130954,-300.0,0.00049056,30]
[406536679,1771923130986,-178.0,0.00049056,30]
[406536680,1771923131017,-471.67249565,0.00049258,30]
[406536681,1771923131045,-250.74,0.00049277,120]
[406536682,1771923131070,-168.42,0.00049315,120]
[406536683,1771923131098,-500.0,0.00049315,120]
[406536684,1771923131126,-500.0,0.00049315,120]
[406536685,1771923131153,-500.0,0.00049315,120]
[406536686,1771923131181,-500.0,0.00049315,120]
[406536687,1771923131208,-150.0,0.00049315,120]
[406536688,1771923131235,-500.0,0.00049315,120]
[406536689,1771923131264,-219.99183371,0.00049315,120]
[406536690,1771923131294,-500.0,0.00049315,120]
[406536691,1771923131321,-500.0,0.00049315,120]
[406536692,1771923131348,-272.8825358,0.00049315,120]
[406536693,1771923131373,-500.0,0.00049315,120]
[406536694,1771923131398,-500.0,0.00049315,120]
[406536695,1771923131425,-259.82740647,0.00049315,120]
[406536696,1771923131454,-208.89887868,0.00049315,120]
[406536697,1771923131482,-500.0,0.00049315,120]
[406536698,1771923131506,-150.85106463,0.00049315,120]
[406536699,1771923131533,-500.0,0.00049315,120]
[406536700,1771923131561,-500.0,0.00049315,120]
[406536701,1771923131588,-291.39352074,0.00049315,120]
[406536702,1771923131615,-500.0,0.00049315,120]
[406536703,1771923131640,-500.0,0.00049315,120]
[406536704,1771923131667,-500.0,0.00049315,120]
[406536705,1771923131813,-586.67504954,0.00049315,120]
[406536706,1771923131842,-176.68126614,0.00049315,120]
[406536707,1771923131867,-500.0,0.00049315,120]
[406536708,1771923131893,-500.0,0.00049315,120]
[406536709,1771923131918,-500.0,0.00049315,120]
[406536710,1771923131943,-500.0,0.00049315,120]
[406536711,1771923131968,-500.0,0.00049315,120]
[406536712,1771923131993,-500.0,0.00049315,120]
[406536713,1771923132018,-500.0,0.00049315,120]
[406536714,1771923132043,-500.0,0.00049315,120]
[406536715,1771923132068,-500.0,0.00049315,120]
[406536716,1771923132094,-500.0,0.00049315,120]
[406536717,1771923132119,-500.0,0.00049315,120]
[406536718,1771923132144,-500.0,0.00049315,120]
[406536719,1771923132170,-502.96493209,0.00049315,120]
[406536720,1771923132194,-500.0,0.00049315,120]
[406536721,1771923132219,-500.0,0.00049315,120]
[406536722,1771923132243,-496.34858369,0.00049315,120]
[406536723,1771923132272,-150.0,0.00049315,120]
[406536724,1771923132298,-150.0,0.00049315,120]
[406536725,1771923132325,-150.0,0.00049315,120]
[406536726,1771923132351,-150.0,0.00049315,120]
[406536727,1771923132375,-150.0,0.00049315,120]
[406536728,1771923132400,-150.0,0.00049315,120]
[406536729,1771923132425,-150.0,0.00049315,120]
[406536730,1771923132450,-234.50873712,0.00049315,120]
[406536731,1771923132476,-211.05893983,0.00049315,120]
[406536732,1771923132502,-150.0,0.00049315,120]
[406536733,1771923132527,-243.50444309,0.00049315,120]
[406536734,1771923132554,-173.225985,0.00049315,120]
[406536735,1771923132580,-150.0,0.00049315,104]
[406536736,1771923132604,-284.02894359,0.00049315,104]
[406536737,1771923132630,-150.0,0.00049315,120]
[406536738,1771923132656,-150.0,0.00049315,120]
[406536739,1771923132680,-150.0,0.00049315,120]
[406536740,1771923132705,-230.08404709,0.00049315,120]
[406536741,1771923132729,-184.8200238,0.00049315,120]
[406536742,1771923132755,-500.0,0.00049315,120]
[406536743,1771923132780,-560.96424996,0.00049315,120]
[406536744,1771923132806,-500.0,0.00049315,120]
[406536745,1771923132832,-500.0,0.00049315,120]
[406536746,1771923132857,-500.0,0.00049315,120]
[406536747,1771923132882,-500.0,0.00049315,120]
[406536748,1771923132907,-392.50205409,0.00049315,120]
[406536749,1771923132933,-500.0,0.00049315,120]
[406536750,1771923132958,-500.0,0.00049315,120]
[406536751,1771923132985,-500.0,0.00049315,120]
[406536752,1771923133010,-500.0,0.00049315,120]
[406536753,1771923133034,-500.0,0.00049315,120]
[406536754,1771923133058,-160.39237972,0.00049315,120]
[406536755,1771923133082,-500.0,0.00049315,120]
[406536756,1771923133107,-500.0,0.00049315,120]
[406536757,1771923133132,-500.0,0.00049315,120]
[406536758,1771923133156,-500.0,0.00049315,120]
[406536759,1771923133180,-500.0,0.00049315,120]
[406536760,1771923133204,-500.0,0.00049315,120]
[406536761,1771923133228,-500.0,0.00049315,120]
[406536762,1771923133252,-500.0,0.00049315,120]
[406536763,1771923133280,-522.87691838,0.00049315,120]
[406536764,1771923133305,-500.0,0.00049315,120]
[406536765,1771923133331,-169.3176174,0.00049315,120]
[406536766,1771923133355,-500.0,0.00049315,120]
[406536767,1771923133381,-500.0,0.00049315,120]
[406536768,1771923133406,-256.9094523,0.00049315,120]
[406536769,1771923133434,-1084.21813444,0.0004938,120]
[406536770,1771923133459,-151.0,0.00049452,42]
[406536771,1771923133484,-223.82,0.00049836,9]
[406536772,1771923133509,-603.10993654,0.000499,120]
[406536773,1771923133536,-533.66,0.00049967,120]
[406536774,1771923133561,-1215.35110596,0.0005,120]
[406536775,1771923133585,-226.98999726,0.0005,20]
[406536776,1771923133609,-500.0,0.0005,120]
[406536777,1771923133635,-300.0,0.0005,120]
[406536778,1771923133658,-517.90272851,0.0005,120]
[406536779,1771923133681,-165.68927889,0.0005,120]
[406536780,1771923133706,-177.7766341,0.0005,120]
[406536781,1771923133731,-250.0,0.0005,30]
[406536782,1771923133754,-1799.99168777,0.0005,120]
[406536783,1771923133780,-152.0,0.0005,120]
[406536784,1771923133804,-137319.417834,0.0005,120]
[406536785,1771923133828,-355.91658632,0.0005,120]
[406536786,1771923133853,-234.82108955,0.00050136,120]
[406536787,1771923133879,-151.0,0.00050136,46]
[406536788,1771923133906,-400.0,0.00050369,30]
[406536789,1771923133932,-400.0,0.00050369,30]
[406536790,1771923134039,-379.0,0.00050369,30]
[406536791,1771923134069,-704.0,0.00050404,31]
[406536792,1771923134093,-1722.15,0.000505,30]
[406536793,1771923134118,-152.0,0.000506,120]
[406536794,1771923134142,-402.0,0.00050773,31]
[406536795,1771923134166,-151.0,0.00050821,50]